[Event "Live Chess"]
[Site "Chess.com"]
[Date "2023.05.20"]
[Round "-"]
[White "worldchessleaguelive"]
[Black "ClassyChameleon"]
[Result "1-0"]
[WhiteElo "1357"]
[BlackElo "1062"]
[TimeControl "300"]
[EndTime "11:50:53 PDT"]
[Termination "worldchessleaguelive won by resignation"]

1. d4 {[%clk 0:04:58.7]} 1... d5 {[%clk 0:04:56]} 2. Bf4 {[%clk 0:04:56]} 2...
Nc6 {[%clk 0:04:54.6]} 3. Nf3 {[%clk 0:04:44.7]} 3... Nf6 {[%clk 0:04:53.3]} 4.
e3 {[%clk 0:04:43.1]} 4... Ne4 {[%clk 0:04:51.6]} 5. Nbd2 {[%clk 0:04:41.6]}
5... Bf5 {[%clk 0:04:48.8]} 6. Nxe4 {[%clk 0:04:37.5]} 6... Bxe4 {[%clk
0:04:47.9]} 7. Nd2 {[%clk 0:04:36.4]} 7... f5 {[%clk 0:04:46.2]} 8. Nxe4 {[%clk
0:04:34.3]} 8... fxe4 {[%clk 0:04:45.6]} 9. Be2 {[%clk 0:04:31.8]} 9... e6
{[%clk 0:04:39]} 10. O-O {[%clk 0:04:22.9]} 10... Qe7 {[%clk 0:04:33]} 11. Be5
{[%clk 0:04:21.5]} 11... O-O-O {[%clk 0:04:29.9]} 12. f4 {[%clk 0:04:16.3]}
12... Rg8 {[%clk 0:04:24.5]} 13. Bb5 {[%clk 0:04:09.1]} 13... Na5 {[%clk
0:04:18.2]} 14. a3 {[%clk 0:04:03.1]} 14... Nc4 {[%clk 0:04:16.8]} 15. Bxc4
{[%clk 0:04:01.6]} 15... dxc4 {[%clk 0:04:15.8]} 16. Qe2 {[%clk 0:03:58.7]}
16... b5 {[%clk 0:04:09.5]} 17. b3 {[%clk 0:03:42.1]} 17... cxb3 {[%clk
0:04:03.8]} 18. Qxb5 {[%clk 0:03:35.9]} 18... bxc2 {[%clk 0:04:01.1]} 19. Qa6+
{[%clk 0:03:34.3]} 19... Kd7 {[%clk 0:03:55.1]} 20. Qxa7 {[%clk 0:03:25.6]}
20... Ke8 {[%clk 0:03:53.1]} 21. Rfc1 {[%clk 0:03:12.2]} 21... g5 {[%clk
0:03:38.2]} 22. Rxc2 {[%clk 0:03:07.7]} 22... gxf4 {[%clk 0:03:37.3]} 23. Qa4+
{[%clk 0:03:03.9]} 23... Kf7 {[%clk 0:03:35.1]} 24. Rxc7 {[%clk 0:03:01.1]}
24... Qxc7 {[%clk 0:03:34.5]} 25. Bxc7 {[%clk 0:02:58]} 25... Re8 {[%clk
0:03:22.6]} 26. Bxf4 {[%clk 0:02:53.6]} 26... Be7 {[%clk 0:03:15.7]} 27. Qb5
{[%clk 0:02:42.3]} 27... Kg7 {[%clk 0:03:14.3]} 28. a4 {[%clk 0:02:39]} 28...
Kh8 {[%clk 0:03:12.9]} 29. Be5+ {[%clk 0:02:32.9]} 29... Rg7 {[%clk 0:03:06.5]}
30. Qxe8+ {[%clk 0:02:26.9]} 1-0

[Event "Live Chess"]
[Site "Chess.com"]
[Date "2023.05.20"]
[Round "-"]
[White "ReceptiveCamel"]
[Black "JohanKjeldahl"]
[Result "0-1"]
[WhiteElo "626"]
[BlackElo "1802"]
[TimeControl "300"]
[EndTime "11:51:01 PDT"]
[Termination "JohanKjeldahl won by checkmate"]

1. e4 {[%clk 0:04:56.4]} 1... c5 {[%clk 0:04:57.8]} 2. Bc4 {[%clk 0:04:55.7]}
2... e6 {[%clk 0:04:56.2]} 3. Nf3 {[%clk 0:04:55]} 3... Nc6 {[%clk 0:04:54.4]}
4. d3 {[%clk 0:04:49.5]} 4... a6 {[%clk 0:04:53.1]} 5. Bf4 {[%clk 0:04:45.7]}
5... b5 {[%clk 0:04:50.8]} 6. Bb3 {[%clk 0:04:44]} 6... Bb7 {[%clk 0:04:49.8]}
7. Nc3 {[%clk 0:04:38.9]} 7... Nf6 {[%clk 0:04:46.7]} 8. O-O {[%clk 0:04:34.5]}
8... Be7 {[%clk 0:04:45]} 9. h3 {[%clk 0:04:27]} 9... Rc8 {[%clk 0:04:39.5]} 10.
a4 {[%clk 0:04:18.3]} 10... b4 {[%clk 0:04:36.6]} 11. Nb1 {[%clk 0:04:13.8]}
11... O-O {[%clk 0:04:34.4]} 12. c3 {[%clk 0:04:11.5]} 12... d5 {[%clk
0:04:32.2]} 13. cxb4 {[%clk 0:04:09.7]} 13... Nxb4 {[%clk 0:04:27.3]} 14. Nc3
{[%clk 0:04:06.9]} 14... d4 {[%clk 0:04:14.1]} 15. Ne2 {[%clk 0:04:04.1]} 15...
a5 {[%clk 0:03:59.7]} 16. Be5 {[%clk 0:04:00.5]} 16... Nd7 {[%clk 0:03:53.3]}
17. Nexd4 {[%clk 0:03:40.5]} 17... cxd4 {[%clk 0:03:48.8]} 18. Nxd4 {[%clk
0:03:39.9]} 18... Nxe5 {[%clk 0:03:46.1]} 19. Nb5 {[%clk 0:03:37.8]} 19... Nexd3
{[%clk 0:03:31.3]} 20. Na7 {[%clk 0:03:33.4]} 20... Ra8 {[%clk 0:03:20.4]} 21.
Nb5 {[%clk 0:03:22.6]} 21... Bc5 {[%clk 0:03:18.4]} 22. Bc4 {[%clk 0:03:17.1]}
22... Bxe4 {[%clk 0:03:15.5]} 23. Bxd3 {[%clk 0:03:14.3]} 23... Bxd3 {[%clk
0:03:13]} 24. Re1 {[%clk 0:03:13.3]} 24... Bxb5 {[%clk 0:03:10.3]} 25. axb5
{[%clk 0:03:10.2]} 25... Qf6 {[%clk 0:03:05.7]} 26. Qa4 {[%clk 0:02:59.8]} 26...
Qxf2+ {[%clk 0:03:01.1]} 27. Kh2 {[%clk 0:02:56.1]} 27... Bd6+ {[%clk
0:02:57.6]} 28. Kh1 {[%clk 0:02:54.1]} 28... Qg3 {[%clk 0:02:56.4]} 29. Qc2
{[%clk 0:02:44.5]} 29... Qh2# {[%clk 0:02:54.6]} 0-1

[Event "Live Chess"]
[Site "Chess.com"]
[Date "2023.05.20"]
[Round "-"]
[White "manthanit"]
[Black "OceanFloater"]
[Result "0-1"]
[WhiteElo "944"]
[BlackElo "979"]
[TimeControl "300"]
[EndTime "11:51:10 PDT"]
[Termination "OceanFloater won on time"]

1. e4 {[%clk 0:04:54.7]} 1... c6 {[%clk 0:04:59.2]} 2. Nf3 {[%clk 0:04:52.1]}
2... d5 {[%clk 0:04:58.3]} 3. exd5 {[%clk 0:04:46.8]} 3... cxd5 {[%clk
0:04:56.7]} 4. d4 {[%clk 0:04:46.3]} 4... Nc6 {[%clk 0:04:54.4]} 5. Nc3 {[%clk
0:04:43.5]} 5... e6 {[%clk 0:04:51]} 6. Be2 {[%clk 0:04:37.7]} 6... Nge7 {[%clk
0:04:47.1]} 7. O-O {[%clk 0:04:35.9]} 7... Ng6 {[%clk 0:04:45.2]} 8. Bg5 {[%clk
0:04:27.3]} 8... Be7 {[%clk 0:04:42.8]} 9. Bf4 {[%clk 0:04:24.2]} 9... Nxf4
{[%clk 0:04:40.5]} 10. Bb5 {[%clk 0:04:20.4]} 10... a6 {[%clk 0:04:30.4]} 11.
Ba4 {[%clk 0:04:17.9]} 11... b5 {[%clk 0:04:29.1]} 12. Bb3 {[%clk 0:04:16.6]}
12... Bf6 {[%clk 0:04:17.4]} 13. a4 {[%clk 0:04:14.1]} 13... Nxd4 {[%clk
0:04:14.2]} 14. axb5 {[%clk 0:04:11.6]} 14... Nxf3+ {[%clk 0:04:11.9]} 15. Qxf3
{[%clk 0:04:09.3]} 15... Ng6 {[%clk 0:04:10]} 16. bxa6 {[%clk 0:04:06.8]} 16...
Bxa6 {[%clk 0:04:08.6]} 17. Ba4+ {[%clk 0:04:05.2]} 17... Ke7 {[%clk 0:04:03.3]}
18. Rfe1 {[%clk 0:03:56.6]} 18... Ne5 {[%clk 0:03:48.7]} 19. Qe3 {[%clk
0:03:45.4]} 19... Qc7 {[%clk 0:03:40.6]} 20. Nb5 {[%clk 0:03:24.5]} 20... Bxb5
{[%clk 0:03:37.2]} 21. Bxb5 {[%clk 0:03:23.4]} 21... Ng4 {[%clk 0:03:26]} 22.
Qg3 {[%clk 0:03:06.2]} 22... Qxg3 {[%clk 0:03:18.8]} 23. hxg3 {[%clk 0:03:04.3]}
23... Rxa1 {[%clk 0:03:15.3]} 24. Rxa1 {[%clk 0:03:03.3]} 24... Bxb2 {[%clk
0:03:14.4]} 25. Ra7+ {[%clk 0:03:00.8]} 25... Kf6 {[%clk 0:03:12.2]} 26. Bd3
{[%clk 0:02:39.7]} 26... Ne5 {[%clk 0:03:07.7]} 27. Be2 {[%clk 0:02:31.5]} 27...
Rc8 {[%clk 0:03:06.1]} 28. Bh5 {[%clk 0:02:18.8]} 28... g6 {[%clk 0:03:00]} 29.
Bd1 {[%clk 0:02:13.3]} 29... d4 {[%clk 0:02:51.9]} 30. Ra2 {[%clk 0:02:09.2]}
30... Bc3 {[%clk 0:02:47.4]} 31. f4 {[%clk 0:02:01]} 31... Ng4 {[%clk
0:02:41.7]} 32. Bxg4 {[%clk 0:01:58.8]} 32... h5 {[%clk 0:02:38]} 33. Bd1 {[%clk
0:01:57.3]} 33... Be1 {[%clk 0:02:30.8]} 34. Kh2 {[%clk 0:01:48]} 34... g5
{[%clk 0:02:27]} 35. fxg5+ {[%clk 0:01:46.2]} 35... Kxg5 {[%clk 0:02:26]} 36.
Kh3 {[%clk 0:01:43.6]} 36... f5 {[%clk 0:02:21.9]} 37. Ra6 {[%clk 0:01:39.3]}
37... e5 {[%clk 0:02:05.9]} 38. Ra7 {[%clk 0:01:36.5]} 38... e4 {[%clk
0:01:55.4]} 39. Rh7 {[%clk 0:01:27.7]} 39... e3 {[%clk 0:01:38.7]} 40. Rxh5+
{[%clk 0:01:25]} 40... Kf6 {[%clk 0:01:37.8]} 41. g4 {[%clk 0:01:11.9]} 41...
fxg4+ {[%clk 0:01:25.4]} 42. Kxg4 {[%clk 0:01:09.2]} 42... e2 {[%clk 0:01:23.8]}
43. Bxe2 {[%clk 0:01:05.6]} 43... Rxc2 {[%clk 0:01:23.4]} 44. Rf5+ {[%clk
0:01:00.8]} 44... Ke7 {[%clk 0:01:18.4]} 45. Bd3 {[%clk 0:00:57.2]} 45... Rxg2+
{[%clk 0:01:16.1]} 46. Kf3 {[%clk 0:00:55.4]} 46... Rg3+ {[%clk 0:01:14.4]} 47.
Ke2 {[%clk 0:00:53.5]} 47... Bc3 {[%clk 0:01:06.7]} 48. Rf3 {[%clk 0:00:44.3]}
48... Rg2+ {[%clk 0:01:03.4]} 49. Kf1 {[%clk 0:00:40.1]} 49... Ra2 {[%clk
0:00:52.5]} 50. Rf4 {[%clk 0:00:29.4]} 50... Kd6 {[%clk 0:00:50.9]} 51. Rf5
{[%clk 0:00:19.7]} 51... Rd2 {[%clk 0:00:47.9]} 52. Bc4 {[%clk 0:00:14.9]} 52...
Rb2 {[%clk 0:00:40.1]} 53. Rh5 {[%clk 0:00:10.4]} 53... Kc6 {[%clk 0:00:33.9]}
54. Rf5 {[%clk 0:00:06.8]} 54... Rb1+ {[%clk 0:00:29.4]} 55. Ke2 {[%clk
0:00:05.1]} 55... Rb2+ {[%clk 0:00:25.6]} 56. Kd1 {[%clk 0:00:03.7]} 56... Rd2+
{[%clk 0:00:23.7]} 57. Kc1 {[%clk 0:00:01.2]} 57... d3 {[%clk 0:00:18.3]} 0-1

[Event "Live Chess"]
[Site "Chess.com"]
[Date "2023.05.20"]
[Round "-"]
[White "BostonStrangler"]
[Black "risinghelios"]
[Result "1-0"]
[WhiteElo "2045"]
[BlackElo "1931"]
[TimeControl "300"]
[EndTime "11:51:37 PDT"]
[Termination "BostonStrangler won by resignation"]

1. Nf3 {[%clk 0:04:57]} 1... d5 {[%clk 0:04:59.1]} 2. g3 {[%clk 0:04:55.5]} 2...
Bg4 {[%clk 0:04:59]} 3. Ne5 {[%clk 0:04:53.1]} 3... Bf3 {[%clk 0:04:58.9]} 4.
Nxf3 {[%clk 0:04:51.3]} 4... Nf6 {[%clk 0:04:56.4]} 5. Bg2 {[%clk 0:04:49.9]}
5... e6 {[%clk 0:04:56.3]} 6. O-O {[%clk 0:04:49.1]} 6... Bd6 {[%clk 0:04:56.2]}
7. c4 {[%clk 0:04:48.3]} 7... h5 {[%clk 0:04:56.1]} 8. cxd5 {[%clk 0:04:47.3]}
8... exd5 {[%clk 0:04:56]} 9. Nc3 {[%clk 0:04:46.3]} 9... h4 {[%clk 0:04:55.6]}
10. Nb5 {[%clk 0:04:45]} 10... hxg3 {[%clk 0:04:54.2]} 11. Nxd6+ {[%clk
0:04:42.9]} 11... Qxd6 {[%clk 0:04:54.1]} 12. fxg3 {[%clk 0:04:40.9]} 12... Ne4
{[%clk 0:04:54]} 13. d3 {[%clk 0:04:37.6]} 13... Qc5+ {[%clk 0:04:52]} 14. d4
{[%clk 0:04:35.7]} 1-0

[Event "Live Chess"]
[Site "Chess.com"]
[Date "2023.05.20"]
[Round "-"]
[White "Hacker_2009"]
[Black "LanceMaster23"]
[Result "0-1"]
[WhiteElo "1921"]
[BlackElo "1852"]
[TimeControl "300"]
[EndTime "11:51:53 PDT"]
[Termination "LanceMaster23 won by resignation"]

1. d4 {[%clk 0:04:58.6]} 1... Nf6 {[%clk 0:04:51.6]} 2. Nf3 {[%clk 0:04:57.2]}
2... d5 {[%clk 0:04:51]} 3. e3 {[%clk 0:04:56.1]} 3... Bf5 {[%clk 0:04:50.2]} 4.
c4 {[%clk 0:04:55.6]} 4... e6 {[%clk 0:04:49.5]} 5. Nc3 {[%clk 0:04:55.3]} 5...
c6 {[%clk 0:04:48.6]} 6. Be2 {[%clk 0:04:54.9]} 6... Be7 {[%clk 0:04:47.6]} 7.
O-O {[%clk 0:04:54.5]} 7... Nbd7 {[%clk 0:04:47]} 8. cxd5 {[%clk 0:04:53.8]}
8... exd5 {[%clk 0:04:46]} 9. b3 {[%clk 0:04:53.3]} 9... O-O {[%clk 0:04:45.3]}
10. Bb2 {[%clk 0:04:52.9]} 10... Re8 {[%clk 0:04:44.6]} 11. Rc1 {[%clk
0:04:52.5]} 11... Ne4 {[%clk 0:04:43.9]} 12. Na4 {[%clk 0:04:51.3]} 12... h6
{[%clk 0:04:39.6]} 13. Nc5 {[%clk 0:04:50.8]} 13... Ndxc5 {[%clk 0:04:37.8]} 14.
dxc5 {[%clk 0:04:50]} 14... Qa5 {[%clk 0:04:36.2]} 15. a3 {[%clk 0:04:35.2]}
15... Qc7 {[%clk 0:04:10.8]} 16. b4 {[%clk 0:04:30.4]} 16... a5 {[%clk
0:04:10.1]} 17. Nd4 {[%clk 0:04:28.2]} 17... Bg6 {[%clk 0:04:05.5]} 18. Bd3
{[%clk 0:04:11.7]} 18... axb4 {[%clk 0:04:00.9]} 19. axb4 {[%clk 0:04:09.4]}
19... Ra2 {[%clk 0:03:56.8]} 20. Qb3 {[%clk 0:04:00]} 20... Rea8 {[%clk
0:03:50.2]} 21. Rfd1 {[%clk 0:03:55.6]} 21... Nxf2 {[%clk 0:03:11.2]} 22. Kxf2
{[%clk 0:03:52.5]} 22... Bxd3 {[%clk 0:03:01.5]} 23. Rxd3 {[%clk 0:03:48.7]}
23... Qxh2 {[%clk 0:03:00.6]} 24. Nf3 {[%clk 0:03:45.9]} 24... Bh4+ {[%clk
0:02:47.1]} 25. Nxh4 {[%clk 0:03:42.4]} 25... Qxh4+ {[%clk 0:02:43.2]} 26. Kg1
{[%clk 0:03:39.3]} 26... Qe4 {[%clk 0:02:01.8]} 27. Qc3 {[%clk 0:03:33.5]} 27...
Rxb2 {[%clk 0:01:42.8]} 28. Qxb2 {[%clk 0:03:27]} 28... Qxd3 {[%clk 0:01:41.9]}
29. Qf2 {[%clk 0:03:22]} 29... Ra2 {[%clk 0:01:36.5]} 30. Qxa2 {[%clk
0:03:13.6]} 30... Qxe3+ {[%clk 0:01:35.7]} 31. Kh2 {[%clk 0:03:06.1]} 31... Qf4+
{[%clk 0:01:33.5]} 32. g3 {[%clk 0:03:01.5]} 32... Qxc1 {[%clk 0:01:31.6]} 33.
Qa8+ {[%clk 0:03:01.1]} 33... Kh7 {[%clk 0:01:30.1]} 34. Qxb7 {[%clk 0:03:01]}
34... Qd2+ {[%clk 0:01:23.1]} 35. Kh3 {[%clk 0:02:58.4]} 35... f5 {[%clk
0:01:08]} 36. Qxc6 {[%clk 0:02:45.1]} 36... Qd1 {[%clk 0:00:50]} 37. Kg2 {[%clk
0:02:40.9]} 37... Qe2+ {[%clk 0:00:46.5]} 38. Kg1 {[%clk 0:02:39.2]} 38... Qe3+
{[%clk 0:00:41.6]} 39. Kf1 {[%clk 0:02:37.1]} 39... d4 {[%clk 0:00:40.5]} 40.
Qg2 {[%clk 0:02:26.7]} 40... d3 {[%clk 0:00:39.3]} 41. Qf2 {[%clk 0:02:22.7]}
41... Qc1+ {[%clk 0:00:33.2]} 42. Qe1 {[%clk 0:02:21.2]} 42... d2 {[%clk
0:00:31.3]} 0-1

[Event "Live Chess"]
[Site "Chess.com"]
[Date "2023.05.20"]
[Round "-"]
[White "martynstanley"]
[Black "vovanada"]
[Result "1/2-1/2"]
[WhiteElo "1005"]
[BlackElo "825"]
[TimeControl "300"]
[EndTime "11:51:54 PDT"]
[Termination "Game drawn by stalemate"]

1. d4 {[%clk 0:04:57.6]} 1... d5 {[%clk 0:04:58.2]} 2. e3 {[%clk 0:04:56.4]}
2... e6 {[%clk 0:04:54.4]} 3. Bd3 {[%clk 0:04:55.6]} 3... Nf6 {[%clk 0:04:49.2]}
4. c3 {[%clk 0:04:54.9]} 4... Ne4 {[%clk 0:04:47.3]} 5. Nd2 {[%clk 0:04:53.6]}
5... Nxd2 {[%clk 0:04:43.7]} 6. Bxd2 {[%clk 0:04:52.6]} 6... Bd6 {[%clk
0:04:35.5]} 7. f4 {[%clk 0:04:51.7]} 7... O-O {[%clk 0:04:33.1]} 8. Nf3 {[%clk
0:04:50.7]} 8... Nc6 {[%clk 0:04:26.7]} 9. Ne5 {[%clk 0:04:43.6]} 9... Nxe5
{[%clk 0:04:24]} 10. fxe5 {[%clk 0:04:40.6]} 10... Be7 {[%clk 0:04:13.4]} 11.
O-O {[%clk 0:04:39.3]} 11... f6 {[%clk 0:03:59.1]} 12. Rf3 {[%clk 0:04:31.9]}
12... fxe5 {[%clk 0:03:52.4]} 13. Bxh7+ {[%clk 0:04:29.5]} 13... Kxh7 {[%clk
0:03:48.5]} 14. Rh3+ {[%clk 0:04:28.3]} 14... Kg8 {[%clk 0:03:47]} 15. Qh5
{[%clk 0:04:26]} 15... a5 {[%clk 0:03:04.4]} 16. Qh7+ {[%clk 0:04:23.4]} 16...
Kf7 {[%clk 0:03:03.1]} 17. Rf1+ {[%clk 0:04:22.6]} 17... Bf6 {[%clk 0:02:57]}
18. Qg6+ {[%clk 0:04:21.3]} 18... Ke7 {[%clk 0:02:54.2]} 19. dxe5 {[%clk
0:04:20.4]} 19... Bxe5 {[%clk 0:02:40.1]} 20. Rxf8 {[%clk 0:04:16.8]} 20... Qxf8
{[%clk 0:02:35.3]} 21. Rf3 {[%clk 0:04:15.6]} 21... Qg8 {[%clk 0:02:03.4]} 22.
Qg5+ {[%clk 0:04:13.4]} 22... Kd6 {[%clk 0:01:58.4]} 23. Bc1 {[%clk 0:04:07.2]}
23... Bd7 {[%clk 0:01:49.4]} 24. b3 {[%clk 0:04:06.1]} 24... Rf8 {[%clk
0:01:46.4]} 25. Ba3+ {[%clk 0:04:04.5]} 25... c5 {[%clk 0:01:38]} 26. b4 {[%clk
0:04:00.4]} 26... b6 {[%clk 0:01:31.7]} 27. bxa5 {[%clk 0:03:57.3]} 27... bxa5
{[%clk 0:01:30.5]} 28. h4 {[%clk 0:03:51.7]} 28... Rxf3 {[%clk 0:01:29]} 29.
gxf3 {[%clk 0:03:46.9]} 29... Bxc3 {[%clk 0:01:27.2]} 30. Kf2 {[%clk 0:03:44.9]}
30... Bb4 {[%clk 0:01:20.2]} 31. Bb2 {[%clk 0:03:41.4]} 31... a4 {[%clk
0:01:16.2]} 32. Qe5+ {[%clk 0:03:40.4]} 32... Ke7 {[%clk 0:01:12.5]} 33. Qg5+
{[%clk 0:03:38.8]} 33... Kd6 {[%clk 0:01:10.7]} 34. Be5+ {[%clk 0:03:37.5]}
34... Kc6 {[%clk 0:01:08.6]} 35. e4 {[%clk 0:03:33.9]} 35... dxe4 {[%clk
0:01:06.2]} 36. fxe4 {[%clk 0:03:33]} 36... Qf7+ {[%clk 0:01:05.7]} 37. Ke3
{[%clk 0:03:30.1]} 37... c4 {[%clk 0:00:47.5]} 38. Ke2 {[%clk 0:03:17.3]} 38...
c3 {[%clk 0:00:44.9]} 39. Kd1 {[%clk 0:03:16.3]} 39... Qf1+ {[%clk 0:00:41.6]}
40. Kc2 {[%clk 0:03:13.2]} 40... Qf2+ {[%clk 0:00:38.5]} 41. Kd3 {[%clk
0:03:09.2]} 41... Qd2+ {[%clk 0:00:36.1]} 42. Qxd2 {[%clk 0:03:08]} 42... cxd2
{[%clk 0:00:36]} 43. Bc3 {[%clk 0:03:06.3]} 43... d1=Q+ {[%clk 0:00:34.3]} 44.
Kc4 {[%clk 0:03:03.6]} 44... Bxc3 {[%clk 0:00:33.2]} 45. Kxc3 {[%clk 0:03:02.8]}
45... Qa1+ {[%clk 0:00:30.6]} 46. Kd3 {[%clk 0:02:59.4]} 46... Qxa2 {[%clk
0:00:29.2]} 47. Ke3 {[%clk 0:02:58.7]} 47... Qb3+ {[%clk 0:00:28.3]} 48. Kf4
{[%clk 0:02:58.1]} 48... a3 {[%clk 0:00:27.9]} 49. e5 {[%clk 0:02:57.2]} 49...
a2 {[%clk 0:00:27.8]} 50. Kg5 {[%clk 0:02:56.5]} 50... a1=Q {[%clk 0:00:27.7]}
51. Kg6 {[%clk 0:02:56]} 51... Qg1+ {[%clk 0:00:26.7]} 52. Kh7 {[%clk
0:02:54.6]} 52... Qf3 {[%clk 0:00:25.1]} 53. h5 {[%clk 0:02:53.8]} 53... Qg5
{[%clk 0:00:23.1]} 54. Kg8 {[%clk 0:02:52.1]} 54... Qh6 {[%clk 0:00:20.9]}
1/2-1/2

[Event "Live Chess"]
[Site "Chess.com"]
[Date "2023.05.20"]
[Round "-"]
[White "Doge_Dandolo"]
[Black "MaximKris"]
[Result "1-0"]
[WhiteElo "2088"]
[BlackElo "1880"]
[TimeControl "300"]
[EndTime "11:51:55 PDT"]
[Termination "Doge_Dandolo won by checkmate"]

1. Nf3 {[%clk 0:04:58.6]} 1... d5 {[%clk 0:04:58.6]} 2. c4 {[%clk 0:04:55.5]}
2... e6 {[%clk 0:04:56.5]} 3. g3 {[%clk 0:04:54.1]} 3... Nf6 {[%clk 0:04:55]} 4.
Bg2 {[%clk 0:04:53]} 4... Nc6 {[%clk 0:04:52.8]} 5. O-O {[%clk 0:04:51.7]} 5...
Bc5 {[%clk 0:04:50.2]} 6. d4 {[%clk 0:04:49.7]} 6... Be7 {[%clk 0:04:35.7]} 7.
Qc2 {[%clk 0:04:38.6]} 7... O-O {[%clk 0:04:21.1]} 8. a3 {[%clk 0:04:36.7]} 8...
dxc4 {[%clk 0:04:15.4]} 9. Qxc4 {[%clk 0:04:34.5]} 9... Qd5 {[%clk 0:04:13.7]}
10. Nbd2 {[%clk 0:04:29.4]} 10... Qxc4 {[%clk 0:03:24]} 11. Nxc4 {[%clk
0:04:17.9]} 11... Rd8 {[%clk 0:03:22.6]} 12. Rd1 {[%clk 0:04:15.6]} 12... Bc5
{[%clk 0:03:12]} 13. e3 {[%clk 0:04:07.6]} 13... e5 {[%clk 0:03:01.9]} 14. b4
{[%clk 0:04:05.2]} 14... Bb6 {[%clk 0:02:56.8]} 15. Ncxe5 {[%clk 0:04:02.7]}
15... Nxe5 {[%clk 0:02:54.8]} 16. Nxe5 {[%clk 0:04:01.1]} 16... c5 {[%clk
0:02:52.6]} 17. Nc4 {[%clk 0:03:56.1]} 17... cxd4 {[%clk 0:02:50.6]} 18. Nxb6
{[%clk 0:03:54.3]} 18... axb6 {[%clk 0:02:49.1]} 19. exd4 {[%clk 0:03:49.7]}
19... Be6 {[%clk 0:02:43.4]} 20. Bb2 {[%clk 0:03:48.1]} 20... Rac8 {[%clk
0:02:38.6]} 21. Rac1 {[%clk 0:03:43.2]} 21... Bb3 {[%clk 0:02:34]} 22. Rd3
{[%clk 0:03:36.4]} 22... Rxc1+ {[%clk 0:02:02.9]} 23. Bxc1 {[%clk 0:03:33.5]}
23... Bc4 {[%clk 0:02:01.5]} 24. Rd2 {[%clk 0:03:29.8]} 24... Nd5 {[%clk
0:01:57.6]} 25. Bb2 {[%clk 0:03:25.9]} 25... b5 {[%clk 0:01:55.8]} 26. Rd1
{[%clk 0:03:22.9]} 26... f6 {[%clk 0:01:52.8]} 27. Re1 {[%clk 0:03:21]} 27...
Kf7 {[%clk 0:01:50.9]} 28. Bh3 {[%clk 0:03:15.9]} 28... Re8 {[%clk 0:01:43.5]}
29. Rxe8 {[%clk 0:03:12]} 29... Kxe8 {[%clk 0:01:43.4]} 30. Bc8 {[%clk
0:03:07.4]} 30... b6 {[%clk 0:01:38.6]} 31. Kg2 {[%clk 0:03:00.3]} 31... Ke7
{[%clk 0:01:35.2]} 32. Kf3 {[%clk 0:02:58.4]} 32... g5 {[%clk 0:01:31.6]} 33.
Ke4 {[%clk 0:02:54.2]} 33... h5 {[%clk 0:01:24.5]} 34. Bb7 {[%clk 0:02:53]}
34... Nc7 {[%clk 0:01:19.8]} 35. d5 {[%clk 0:02:46.5]} 35... Kd6 {[%clk
0:01:14.5]} 36. Bxf6 {[%clk 0:02:42.3]} 36... Nxd5 {[%clk 0:01:13]} 37. Bxg5
{[%clk 0:02:37.1]} 37... Nc3+ {[%clk 0:01:08.2]} 38. Kd4 {[%clk 0:02:32.6]}
38... Ne2+ {[%clk 0:00:58.1]} 39. Ke3 {[%clk 0:02:27.8]} 39... Nc3 {[%clk
0:00:43.3]} 40. Bf3 {[%clk 0:02:08.4]} 40... Nb1 {[%clk 0:00:37.3]} 41. Bxh5
{[%clk 0:02:02.5]} 41... Nxa3 {[%clk 0:00:36.1]} 42. Bg6 {[%clk 0:01:59.6]}
42... Bb3 {[%clk 0:00:33]} 43. h4 {[%clk 0:01:55.6]} 43... Nc4+ {[%clk
0:00:31.5]} 44. Kd4 {[%clk 0:01:52.3]} 44... Ke6 {[%clk 0:00:18.9]} 45. h5
{[%clk 0:01:46.7]} 45... Nd6 {[%clk 0:00:16.9]} 46. h6 {[%clk 0:01:41.6]} 46...
Nf7 {[%clk 0:00:16.8]} 47. Be3 {[%clk 0:01:36.1]} 47... Nh8 {[%clk 0:00:15.7]}
48. Bd3 {[%clk 0:01:32.8]} 48... Bc4 {[%clk 0:00:15.5]} 49. Bxc4+ {[%clk
0:01:30.9]} 49... bxc4 {[%clk 0:00:15.4]} 50. Kxc4 {[%clk 0:01:30.2]} 50... Kf5
{[%clk 0:00:15.3]} 51. Kb5 {[%clk 0:01:28.6]} 51... Kg4 {[%clk 0:00:15.2]} 52.
Kxb6 {[%clk 0:01:27.3]} 52... Kf3 {[%clk 0:00:15.1]} 53. Kc7 {[%clk 0:01:26.2]}
53... Ng6 {[%clk 0:00:15]} 54. h7 {[%clk 0:01:23.7]} 54... Nh8 {[%clk
0:00:14.9]} 55. b5 {[%clk 0:01:22.2]} 55... Ke4 {[%clk 0:00:14.8]} 56. b6 {[%clk
0:01:21.4]} 56... Kd5 {[%clk 0:00:14.7]} 57. b7 {[%clk 0:01:20.7]} 57... Ke6
{[%clk 0:00:14.6]} 58. b8=Q {[%clk 0:01:19.8]} 58... Kf7 {[%clk 0:00:14.5]} 59.
Qxh8 {[%clk 0:01:18.4]} 59... Kg6 {[%clk 0:00:14.4]} 60. Qg8+ {[%clk 0:01:17.2]}
60... Kf5 {[%clk 0:00:14.3]} 61. h8=Q {[%clk 0:01:14.3]} 61... Ke4 {[%clk
0:00:13.3]} 62. Qh4+ {[%clk 0:01:11.7]} 62... Kf3 {[%clk 0:00:13.2]} 63. Qd5+
{[%clk 0:01:09.5]} 63... Ke2 {[%clk 0:00:13.1]} 64. Qg4+ {[%clk 0:01:08.1]}
64... Kf1 {[%clk 0:00:13]} 65. Qdd1+ {[%clk 0:01:06.8]} 65... Kg2 {[%clk
0:00:12.2]} 66. Qgf3+ {[%clk 0:01:05.6]} 66... Kh2 {[%clk 0:00:12.1]} 67. Qdh1#
{[%clk 0:01:04.4]} 1-0